bitfinex/quotes_SOLUSD_20250822
["timestamp","ask_amount","ask_price","bid_price","bid_amount"]
[1755846542795,0.06,184.07,184.06,147.09520778]
[1755846545027,0.06,184.07,184.06,151.16955363]
[1755846545519,0.06,184.07,184.06,146.33727397]
[1755846545810,0.06,184.07,184.06,151.16955363]
[1755846547107,0.06,184.07,184.06,151.1704809]
[1755846550093,0.06,184.07,184.06,147.09520778]
[1755846550295,0.06,184.11,184.1,13.59559401]
[1755846550502,0.06,184.11,184.1,139.81556577]
[1755846550712,0.06,184.11,184.1,139.81548239]
[1755846551999,0.06,184.11,184.1,140.47548239]
[1755846553538,0.06,184.11,184.1,145.90731291]
[1755846553817,0.06,184.11,184.1,150.73959257]
[1755846554516,0.06,184.11,184.1,148.97258534]
[1755846555293,0.06,184.11,184.1,143.54075482]
[1755846555501,0.06,184.11,184.1,140.47548239]
[1755846559314,0.06,184.11,184.1,136.39991715]
[1755846559516,0.06,184.11,184.1,140.47692551]
[1755846560311,0.06,184.11,184.1,139.81692551]
[1755846563611,0.06,184.11,184.1,140.47692551]
[1755846564414,0.06,184.11,184.1,145.90875603]
[1755846564607,0.06,184.11,184.1,148.97402846]
[1755846564815,0.06,184.11,184.1,145.90875603]
[1755846565009,0.06,184.11,184.1,148.97402846]
[1755846565212,0.06,184.11,184.1,145.90875603]
[1755846565433,0.06,184.11,184.1,157.46973946]
[1755846565639,0.06,184.11,184.1,154.40446703]
[1755846566004,0.06,184.11,184.1,157.46973946]
[1755846566204,0.06,184.11,184.1,148.97263651]
[1755846566404,0.06,184.11,184.1,152.03790894]
[1755846567499,0.06,184.11,184.1,148.97263651]
[1755846567705,0.06,184.11,184.1,152.03790894]
[1755846568423,0.06,184.11,184.1,148.97263651]
[1755846568632,0.06,184.11,184.1,152.03751952]
[1755846568827,0.06,184.11,184.1,148.31224709]
[1755846569205,3.12527243,184.11,184.1,105.78792395]
[1755846569405,0.06,184.11,184.1,139.41221295]
[1755846569636,3.12527243,184.11,184.1,139.41221295]
[1755846569844,8.58680792,184.11,184.1,17.67221295]
[1755846570007,8.58680792,184.11,184.1,59.81221295]
[1755846570206,20.81789792,184.11,184.1,59.81221295]
[1755846570428,17.75262549,184.11,184.1,59.81221295]
[1755846570618,0.06,184.11,184.1,60.09653609]
[1755846570924,0.06,184.11,184.1,18.61653609]
[1755846571133,4.88197867,184.11,184.1,17.95653609]
[1755846571333,10.31351416,184.11,184.1,13.59559401]
[1755846571718,10.31351416,184.11,184.1,13.73775558]
[1755846571918,10.28351416,184.11,184.1,13.73775558]
[1755846572113,10.28351416,184.11,184.1,17.95761202]
[1755846573016,0.06,184.11,184.1,18.61761202]
[1755846574120,0.06,184.11,184.1,24.04944254]
[1755846574315,0.06,184.11,184.1,18.61761202]
[1755846574538,0.06,184.11,184.1,17.95761202]
[1755846574712,4.85197867,184.11,184.1,60.11773047]
[1755846575339,0.06,184.11,184.1,60.11773047]
[1755846575529,4.85197867,184.11,184.1,60.11773047]
[1755846575919,0.06,184.11,184.1,60.11766836]
[1755846576137,4.85197867,184.11,184.1,60.11766836]
[1755846576335,0.06,184.11,184.1,60.11766836]
[1755846576541,0.06,184.11,184.1,60.77766836]
[1755846577448,0.06,184.11,184.1,66.20949888]
[1755846577738,0.06,184.11,184.1,62.13174767]
[1755846578043,0.06,184.11,184.1,60.77755073]
[1755846579627,0.06,184.11,184.1,60.11755073]
[1755846580028,0.06,184.11,184.1,60.77755073]
[1755846582234,0.06,184.11,184.1,150.62135992]
[1755846582629,0.06,184.11,184.1,145.82938125]
[1755846582822,0.06,184.11,184.1,150.62135992]
[1755846583259,0.06,184.11,184.1,145.82938125]
[1755846583463,0.06,184.11,184.1,150.62135992]
[1755846583755,0.06,184.11,184.1,140.39755073]
[1755846584059,0.06,184.11,184.1,150.62135992]
[1755846584258,0.06,184.11,184.1,140.39755073]
[1755846584744,0.06,184.11,184.1,139.69755073]
[1755846585251,0.06,184.11,184.1,140.35755073]
[1755846585850,0.06,184.11,184.1,145.1495294]
[1755846586026,0.06,184.11,184.1,150.58135992]
[1755846586226,0.06,184.11,184.1,140.35755073]
[1755846586529,0.06,184.11,184.1,145.1495294]
[1755846586935,0.06,184.11,184.1,146.50372634]
[1755846587133,0.06,184.11,184.1,150.58218957]
[1755846587338,0.06,184.11,184.1,145.7902109]
[1755846587526,0.06,184.11,184.1,150.58218957]
[1755846587730,3.71863329,184.15,184.14,13.87991715]
[1755846587931,0.06,184.15,184.14,65.54035905]
[1755846588159,16.327864,184.16,184.15,0.28432314]
[1755846588453,4.79197867,184.25,184.17,0.28432314]
[1755846588659,3.8068137,184.26,184.23,0.14216157]
[1755846588956,16.319869,184.27,184.26,0.28432314]
[1755846589165,0.66,184.29,184.28,0.28432314]
[1755846589343,0.66,184.29,184.28,56.09991715]
[1755846589665,0.1,184.3,184.29,13.87991715]
[1755846590431,0.1,184.3,184.29,14.54991715]
[1755846590747,0.1,184.3,184.29,13.87991715]
[1755846591627,0.1,184.3,184.29,19.34189582]
[1755846591839,0.1,184.3,184.29,14.54991715]
[1755846592523,0.1,184.3,184.29,13.87991715]
[1755846592725,0.1,184.3,184.29,14.54991715]
[1755846593636,0.76,184.3,184.29,56.09991715]
[1755846593954,0.1,184.3,184.29,56.09991715]
[1755846594951,10.97791464,184.3,184.29,56.07991715]
[1755846596253,10.97791464,184.3,184.29,13.59559401]
[1755846596427,24.54275457,184.3,184.27,13.59559401]
[1755846596753,24.54275457,184.3,184.27,13.87991715]
[1755846596754,10.21850352,184.28,184.27,13.87991715]
[1755846596938,10.87850352,184.28,184.26,13.59559401]
[1755846597140,5.45197867,184.27,184.26,13.59559401]
[1755846597744,5.45197867,184.27,184.2,5.46197867]
[1755846597745,19.11681867,184.27,184.2,13.59559401]
[1755846597944,4.79197867,184.23,184.22,13.59559401]
[1755846598332,5.45197867,184.23,184.22,13.59559401]
[1755846598740,5.45197867,184.23,184.22,13.87991715]
[1755846598931,5.45197867,184.23,184.22,13.59559401]
[1755846599128,5.45197867,184.23,184.22,13.87991715]
[1755846599432,5.45197867,184.23,184.22,13.59559401]
[1755846599433,19.11681867,184.23,184.22,13.59559401]
[1755846599650,24.54481628,184.23,184.22,13.73775558]
[1755846599854,19.11681867,184.23,184.22,13.87991715]
[1755846600548,24.54481628,184.23,184.22,13.87991715]
[1755846600861,19.11681867,184.23,184.22,13.87991715]
[1755846601051,14.32484,184.23,184.22,13.87991715]
[1755846601248,19.11681867,184.23,184.22,13.87991715]
[1755846601439,24.54481628,184.23,184.22,13.87991715]
[1755846603358,19.75283761,184.23,184.22,13.87991715]
[1755846603564,14.32484,184.23,184.22,13.87991715]
[1755846603763,19.11681867,184.23,184.22,13.87991715]
[1755846604640,19.11681867,184.23,184.22,0.28432314]
[1755846606163,14.32484,184.23,184.22,0.28432314]
[1755846606372,19.11681867,184.23,184.22,0.28432314]
[1755846606659,24.54481628,184.23,184.22,0.28432314]
[1755846607570,19.75283761,184.23,184.22,0.28432314]
[1755846607861,24.54481628,184.23,184.22,0.28432314]
[1755846608069,13.66484,184.23,184.22,0.28432314]
[1755846608242,18.45681867,184.23,184.22,0.28432314]
[1755846608951,24.54481628,184.23,184.22,0.28432314]
[1755846609646,24.54481628,184.23,184.21,13.59559401]
[1755846609647,24.54481628,184.23,184.11,14.50649882]
[1755846609853,4.79197867,184.19,184.16,13.59559401]
[1755846610052,4.79197867,184.19,184.18,13.59559401]
[1755846610446,21.11806467,184.19,184.18,13.59559401]
[1755846610660,16.326086,184.19,184.18,13.59559401]
[1755846610863,16.326086,184.19,184.18,13.87991715]
[1755846614372,21.77806467,184.19,184.18,0.28432314]
[1755846614583,21.77806467,184.19,184.18,13.87991715]
[1755846614951,27.20724106,184.19,184.18,13.87991715]
[1755846615458,16.326086,184.19,184.18,13.87991715]
[1755846615775,27.20724106,184.19,184.18,13.87991715]
[1755846615948,27.20724106,184.19,184.12,0.7]
[1755846616282,26.0,184.17,184.16,0.03]
[1755846616649,26.66,184.17,184.16,0.03]
[1755846617464,31.45197867,184.17,184.16,0.03]
[1755846617652,36.88174464,184.17,184.16,0.03]
[1755846618084,50.45615958,184.17,184.14,0.03]
[1755846618377,9.58395734,184.15,184.14,0.03]
[1755846618879,10.27395734,184.15,184.14,0.03]
[1755846619675,15.70431302,184.15,184.14,0.03]
[1755846620584,26.0,184.13,184.12,0.03]
[1755846620766,30.79197867,184.13,184.12,0.03]
[1755846620968,31.48197867,184.13,184.12,0.03]
[1755846621565,5.43124049,184.12,184.09,0.03]
[1755846621869,26.0,184.1,184.09,0.03]
[1755846622069,4.79197867,184.1,184.09,0.03]
[1755846622475,30.79197867,184.1,184.09,0.03]
[1755846622865,30.79197867,184.1,184.09,13.90991715]
[1755846623069,4.79197867,184.1,184.09,13.90991715]
[1755846623263,0.69,184.13,184.09,14.57991715]
[1755846623464,4.79197867,184.14,184.12,0.28432314]
[1755846623671,4.79197867,184.14,184.13,13.87991715]
[1755846623874,26.0,184.14,184.13,13.87991715]
[1755846624071,26.0,184.14,184.13,0.95432314]
[1755846625278,26.0,184.14,184.13,0.67]
[1755846625484,30.79197867,184.15,184.13,0.67]
[1755846625699,22.44548595,184.19,184.15,13.59559401]
[1755846625886,30.79197867,184.16,184.15,13.59559401]
[1755846626183,4.79197867,184.17,184.15,13.59559401]
[1755846626385,26.0,184.16,184.15,13.59559401]
[1755846626593,26.0,184.16,184.15,0.67]
[1755846626800,21.11806467,184.19,184.16,13.73775558]
[1755846626962,21.11806467,184.19,184.18,13.59559401]
[1755846627973,21.11806467,184.19,184.16,0.28432314]
[1755846627974,21.80806467,184.19,184.16,0.28432314]
[1755846628300,4.79197867,184.18,184.16,0.28432314]
[1755846629076,4.79197867,184.17,184.16,0.28432314]
[1755846629295,5.48197867,184.18,184.16,0.28432314]
[1755846631988,0.69,184.18,184.16,0.28432314]
[1755846632182,5.48197867,184.18,184.16,0.28432314]
[1755846632684,24.50704404,184.18,184.16,0.28432314]
[1755846633401,0.69,184.17,184.15,0.28432314]
[1755846633579,5.48197867,184.17,184.15,0.28432314]
[1755846633782,0.69,184.16,184.15,0.28432314]
[1755846634003,4.79197867,184.17,184.15,0.28432314]
[1755846634176,24.50704404,184.18,184.15,0.28432314]
[1755846634497,13.595594,184.18,184.15,0.28432314]
[1755846634677,18.38757267,184.18,184.17,13.59559401]
[1755846635502,18.38757267,184.18,184.15,13.87991715]
[1755846636000,18.38757267,184.18,184.15,14.54991715]
[1755846636697,4.79197867,184.18,184.15,14.54991715]
[1755846637796,4.79197867,184.17,184.15,14.54991715]
[1755846638098,4.79197867,184.17,184.15,13.87991715]
[1755846638412,4.79197867,184.16,184.15,13.87991715]
[1755846638696,16.327864,184.18,184.15,18.59745444]
[1755846638898,4.79197867,184.18,184.17,13.59559401]
[1755846639271,4.79197867,184.18,184.15,13.87991715]
[1755846639472,4.79197867,184.17,184.15,14.54991715]
[1755846640170,4.79197867,184.17,184.16,4.33605548]
[1755846640898,4.79197867,184.17,184.16,5.00605548]
[1755846641075,4.79197867,184.18,184.17,13.59559401]
[1755846642078,4.79197867,184.18,184.16,0.28432314]
[1755846643797,4.79197867,184.17,184.16,0.28432314]
[1755846643994,4.79197867,184.18,184.17,13.59559401]
[1755846644191,0.06,184.2,184.19,13.87991715]
[1755846644393,5.54197867,184.2,184.19,13.87991715]
[1755846644675,5.54197867,184.2,184.19,0.28432314]
[1755846645091,4.85197867,184.2,184.19,0.28432314]
[1755846645300,5.54197867,184.2,184.19,0.28432314]
[1755846645891,4.85197867,184.2,184.19,0.28432314]
[1755846646774,0.06,184.2,184.19,0.28432314]
[1755846646974,0.06,184.2,184.19,0.99432314]
[1755846647312,0.06,184.2,184.19,10.47917273]
[1755846647988,0.06,184.2,184.19,103.69476674]
[1755846648304,0.06,184.2,184.19,108.48674541]
[1755846648907,0.06,184.2,184.19,103.69476674]
[1755846649091,0.06,184.2,184.19,108.48674541]
[1755846650606,0.06,184.2,184.19,108.4794771]
[1755846651895,0.06,184.22,184.19,108.4794771]
[1755846652096,0.06,184.22,184.21,18.67189582]
[1755846652297,0.06,184.22,184.21,22.72030071]
[1755846652601,0.06,184.22,184.21,18.63832204]
[1755846652789,0.06,184.22,184.21,103.05030071]
[1755846653695,0.06,184.22,184.21,98.25334847]
[1755846654409,0.06,184.22,184.21,98.1111869]
[1755846654886,0.06,184.22,184.21,98.25334847]
[1755846655088,0.06,184.22,184.21,103.04532714]
[1755846655508,0.06,184.22,184.21,98.25334847]
[1755846655817,0.06,184.22,184.21,97.54334847]
[1755846656187,4.85197867,184.22,184.21,17.63902533]
[1755846656391,5.52197867,184.22,184.21,55.85559401]
[1755846656718,5.52197867,184.22,184.21,56.13991715]
[1755846656919,5.52197867,184.22,184.21,55.85559401]
[1755846657426,5.52197867,184.22,184.21,56.13991715]
[1755846657783,0.73,184.22,184.21,56.13991715]
[1755846657991,5.52197867,184.22,184.21,56.13991715]
[1755846658506,0.06,184.22,184.21,56.84991715]
[1755846658693,0.06,184.22,184.21,60.8918976]
[1755846659402,0.06,184.22,184.21,60.1818976]
[1755846659712,0.06,184.22,184.21,56.84991715]
[1755846659913,0.06,184.22,184.21,60.89108159]
[1755846660305,0.06,184.22,184.21,60.89067728]
[1755846662018,0.06,184.22,184.21,139.79991863]
[1755846662219,0.73,184.22,184.21,139.79991863]
[1755846662420,5.52197867,184.22,184.21,139.83991863]
[1755846662618,5.52197867,184.22,184.21,139.55559549]
[1755846662822,5.52197867,184.22,184.21,55.89559401]
[1755846662999,5.52197867,184.22,184.21,56.03775558]
[1755846663199,10.95027092,184.22,184.21,56.03775558]
[1755846663615,10.95027092,184.22,184.21,56.17991715]
[1755846664227,5.52197867,184.22,184.21,56.17991715]
[1755846664821,4.85197867,184.22,184.21,56.17991715]
[1755846665808,0.06,184.22,184.21,60.9321188]
[1755846666017,0.06,184.22,184.21,150.7726844]
[1755846666902,0.06,184.22,184.21,145.98070573]
[1755846667102,0.06,184.23,184.22,13.87991715]
[1755846667337,0.06,184.23,184.22,23.42409747]
[1755846668132,0.06,184.23,184.22,23.42628632]
[1755846668500,0.06,184.23,184.22,28.85457857]
[1755846671602,0.06,184.23,184.22,108.47457857]
[1755846672499,0.06,184.25,184.24,93.37991715]
[1755846672700,0.06,184.25,184.24,278.41628632]
[1755846672905,0.06,184.25,184.24,279.12628632]
[1755846674913,0.06,184.25,184.24,284.55398931]
[1755846676013,0.06,184.29,184.25,13.87991715]
[1755846676330,0.06,184.29,184.28,0.28432314]
[1755846676531,0.06,184.29,184.28,60.28430765]
[1755846676919,0.06,184.29,184.28,65.7108325]
[1755846677221,0.06,184.29,184.28,66.4308325]
[1755846677527,0.06,184.29,184.28,65.70664635]
[1755846678124,0.06,184.29,184.28,66.42664635]
[1755846678329,0.06,184.29,184.28,145.92664635]
[1755846678506,0.06,184.29,184.28,150.71862502]
[1755846679133,0.06,184.29,184.28,145.92664635]
[1755846679334,0.67,184.36,184.3,0.28432314]
[1755846679635,4.79197867,184.35,184.32,13.87991715]
[1755846679831,26.0,184.37,184.34,13.87991715]
[1755846680007,26.0,184.37,184.36,13.87991715]
[1755846680411,26.67,184.37,184.36,13.87991715]
[1755846680845,32.0938759,184.37,184.36,13.87991715]
[1755846681015,36.88585457,184.37,184.36,13.87991715]
[1755846681212,31.46197867,184.37,184.36,13.87991715]
[1755846681853,36.88585457,184.37,184.36,13.59559401]
[1755846682016,31.46197867,184.37,184.36,13.87991715]
[1755846682351,36.88585457,184.37,184.36,13.87991715]
[1755846683024,32.0938759,184.37,184.36,42.68432314]
[1755846683331,36.88585457,184.37,184.36,42.68432314]
[1755846683536,31.46197867,184.37,184.36,42.68432314]
[1755846683916,5.46197867,184.37,184.36,42.68432314]
[1755846684231,10.88585457,184.37,184.36,42.4]
[1755846684435,10.88585457,184.37,184.36,55.99559401]
[1755846684963,6.0938759,184.37,184.36,13.59559401]
[1755846685278,10.88585457,184.37,184.36,13.59559401]
[1755846685926,0.67,184.37,184.36,13.87991715]
[1755846686127,5.52197867,184.37,184.36,13.87991715]
[1755846686373,10.94585457,184.37,184.36,13.59559401]
[1755846686572,10.94585457,184.37,184.36,55.99559401]
[1755846688166,5.52197867,184.37,184.36,55.99559401]
[1755846688827,5.52197867,184.37,184.36,13.59559401]
[1755846688828,10.94585457,184.37,184.36,13.59559401]
[1755846689032,10.94585457,184.37,184.36,55.99559401]
[1755846690929,5.52197867,184.37,184.36,55.99559401]
[1755846691253,5.52197867,184.37,184.36,56.27991715]
[1755846691643,10.94585457,184.37,184.36,56.27991715]
[1755846692358,6.1538759,184.37,184.36,56.27991715]
[1755846692565,10.94585457,184.37,184.36,56.27991715]
[1755846693649,0.73,184.37,184.36,56.13775558]
[1755846693937,5.52197867,184.37,184.36,55.99559401]
[1755846694137,10.94585457,184.37,184.36,55.99559401]
[1755846698761,10.27585457,184.37,184.36,55.99559401]
[1755846699945,4.85197867,184.37,184.36,55.99559401]
[1755846700560,10.27585457,184.37,184.36,55.99559401]
[1755846707288,10.94585457,184.37,184.36,55.99559401]
[1755846708381,10.94585457,184.37,184.36,55.81559401]
[1755846709581,10.27585457,184.37,184.36,55.81559401]
[1755846709760,5.4838759,184.37,184.36,55.81559401]
[1755846709978,10.27585457,184.37,184.36,55.81559401]
[1755846710162,10.94585457,184.37,184.36,55.81559401]
[1755846710568,10.94585457,184.37,184.36,13.59559401]
[1755846710772,10.94585457,184.37,184.36,55.83559401]
[1755846714865,5.4838759,184.37,184.36,55.83559401]
[1755846715092,10.94585457,184.37,184.36,55.83559401]
[1755846715384,10.94585457,184.37,184.36,13.59559401]
[1755846715584,10.94585457,184.37,184.36,55.79559401]
[1755846717186,10.27585457,184.37,184.36,55.79559401]
[1755846717860,10.94585457,184.37,184.36,55.79559401]
[1755846718362,10.94585457,184.37,184.36,59.85266726]
[1755846718564,10.94585457,184.37,184.36,4.05707325]
[1755846718770,10.94585457,184.37,184.36,42.2]
[1755846720767,10.94585457,184.37,184.33,13.59559401]
[1755846720995,4.7413839,184.36,184.34,42.18]
[1755846721596,45.04356565,184.37,184.34,42.18]
[1755846721896,4.74271879,184.36,184.34,42.18]
[1755846722202,10.216443,184.35,184.34,55.77559401]
[1755846724567,10.886443,184.35,184.32,80.16]
[1755846724789,4.79197867,184.33,184.32,13.59559401]
[1755846724972,4.79197867,184.33,184.32,59.83849419]
[1755846725286,5.42420053,184.36,184.33,13.59559401]
[1755846725481,0.67,184.35,184.34,4.06290018]
[1755846726290,21.73785753,184.36,184.34,4.06290018]
[1755846726487,5.42420053,184.36,184.34,0.66]
[1755846726695,4.79197867,184.35,184.34,0.66]
[1755846727064,4.79197867,184.35,184.33,42.18]
[1755846727264,4.79197867,184.34,184.33,56.43559401]
[1755846727468,4.79197867,184.34,184.33,55.77559401]
[1755846728372,10.21673726,184.34,184.33,55.77559401]
[1755846729904,5.42475859,184.34,184.33,55.77559401]
[1755846730096,10.21673726,184.34,184.33,55.77559401]
[1755846731193,10.88673726,184.34,184.29,0.69]
[1755846731394,4.79197867,184.31,184.3,56.41559401]
[1755846731583,4.79197867,184.31,184.3,56.69991715]
[1755846731995,4.79197867,184.32,184.31,13.87991715]
[1755846732176,4.79197867,184.32,184.31,14.53991715]
[1755846732376,3.05895635,184.32,184.31,14.53991715]
[1755846733672,5.42478082,184.34,184.31,13.87991715]
[1755846733889,5.42478082,184.34,184.33,13.59559401]
[1755846734077,8.48373717,184.34,184.33,13.59559401]
[1755846734479,9.15373717,184.34,184.33,13.59559401]
[1755846735774,8.48373717,184.34,184.33,13.59559401]
[1755846735989,9.15373717,184.34,184.33,13.59559401]
[1755846736398,8.48373717,184.34,184.33,13.59559401]
[1755846736606,9.15373717,184.34,184.33,13.59559401]
[1755846737098,8.48373717,184.34,184.33,13.59559401]
[1755846737904,3.05895635,184.34,184.33,13.59559401]
[1755846739182,8.48371494,184.34,184.33,13.59559401]
[1755846739382,3.05895635,184.34,184.33,14.25559401]
[1755846740102,8.48371494,184.34,184.33,13.59559401]
[1755846740303,9.16371494,184.34,184.33,13.59559401]
[1755846741599,9.16371494,184.34,184.32,42.16]
[1755846741808,3.73895635,184.33,184.32,42.16]
[1755846742009,9.16400924,184.33,184.32,42.16]
[1755846742585,25.47855324,184.33,184.32,42.16]
[1755846742823,24.79855324,184.33,184.32,42.16]
[1755846743915,24.79855324,184.33,184.32,55.75559401]
[1755846744120,25.47855324,184.33,184.32,55.75559401]
[1755846745380,24.79855324,184.33,184.32,55.75559401]
[1755846746507,25.47855324,184.33,184.32,55.75559401]
[1755846746709,37.71437864,184.33,184.29,0.03]
[1755846746879,3.05895635,184.3,184.29,42.17]
[1755846747085,3.73895635,184.3,184.29,13.62559401]
[1755846747389,29.73895635,184.3,184.29,0.03]
[1755846747601,43.36455035,184.3,184.29,0.03]
[1755846747991,48.79048632,184.3,184.29,0.03]
[1755846750323,48.79048632,184.3,184.27,0.03]
[1755846750501,29.05895635,184.28,184.27,0.03]
[1755846750916,29.73895635,184.28,184.27,0.03]
[1755846751202,46.05882535,184.28,184.27,0.03]
[1755846752222,51.4853502,184.28,184.27,0.03]
[1755846755620,51.4853502,184.28,184.25,0.03]
[1755846755811,29.05895635,184.26,184.25,0.03]
[1755846756141,34.48607021,184.26,184.25,0.03]
[1755846756345,51.48860321,184.26,184.25,0.03]
[1755846756558,63.72442861,184.26,184.24,0.03]
[1755846756839,15.97478175,184.25,184.24,0.03]
[1755846757047,15.97478175,184.25,184.23,0.03]
[1755846757251,29.05895635,184.23,184.22,0.03]
[1755846757617,41.97478175,184.23,184.22,0.03]
[1755846757917,58.29997975,184.23,184.22,0.03]
[1755846758252,26.0,184.19,184.18,0.03]
[1755846758410,29.05895635,184.19,184.18,0.03]
[1755846758927,45.38770835,184.19,184.18,0.03]
[1755846759735,46.06770835,184.19,184.18,0.03]
[1755846760437,53.22725918,184.19,184.18,0.03]
[1755846761110,53.22725918,184.19,184.16,0.03]
[1755846761111,58.01658997,184.19,184.16,0.03]
[1755846761317,26.0,184.14,184.13,0.03]
[1755846761548,35.57866158,184.14,184.13,0.03]
[1755846761747,36.25866158,184.14,184.13,0.03]
[1755846762438,41.68931217,184.14,184.13,0.03]
[1755846763215,41.68931217,184.14,184.12,0.03]
[1755846763424,5.46933079,184.13,184.12,0.03]
[1755846764647,6.11094552,184.13,184.12,0.03]
[1755846764823,10.90027631,184.13,184.12,0.03]
[1755846766035,13.07839131,184.13,184.12,0.03]
[1755846767327,26.0,184.11,184.1,0.2]
[1755846767650,4.78933079,184.11,184.1,0.2]
[1755846767954,31.47933079,184.11,184.1,0.2]
[1755846768649,36.91086628,184.11,184.1,0.2]
[1755846768841,36.91086628,184.11,184.09,0.03]
[1755846769149,31.47933079,184.1,184.07,0.03]
[1755846769337,4.78933079,184.08,184.07,0.03]
[1755846770036,31.47933079,184.08,184.07,0.03]
[1755846770621,45.10492479,184.08,184.07,0.03]
[1755846770921,39.625594,184.08,184.07,0.03]
[1755846771119,49.84734547,184.08,184.07,0.03]
[1755846772747,39.625594,184.08,184.07,0.03]
[1755846773045,44.41492479,184.08,184.07,0.71]
[1755846773248,49.84734547,184.08,184.07,0.03]
[1755846773855,50.53734547,184.08,184.07,0.03]
[1755846774148,49.84734547,184.08,184.07,0.03]
[1755846774717,39.625594,184.08,184.07,0.03]
[1755846774943,49.84734547,184.08,184.07,0.03]
[1755846775444,50.53734547,184.08,184.07,0.03]
[1755846775837,49.84734547,184.08,184.07,0.03]
[1755846776433,50.53734547,184.08,184.07,0.03]
[1755846779863,49.84734547,184.08,184.07,0.03]
[1755846780041,50.53734547,184.08,184.07,0.03]
[1755846780441,49.84734547,184.08,184.07,0.03]
[1755846781056,50.53734547,184.08,184.07,0.03]
[1755846781839,49.84734547,184.08,184.07,0.71]
[1755846782136,39.625594,184.08,184.07,14.30559401]
[1755846782451,49.84734547,184.08,184.07,0.03]
[1755846783063,49.84734547,184.08,184.07,0.71]
[1755846783559,45.05801468,184.08,184.07,0.03]
[1755846783754,49.84734547,184.08,184.07,0.03]
[1755846783950,49.84734547,184.08,184.07,0.71]
[1755846784464,45.05801468,184.08,184.07,0.71]
[1755846784760,39.625594,184.08,184.07,14.30559401]
[1755846785354,44.41492479,184.08,184.07,14.30559401]
[1755846786339,39.625594,184.08,184.07,14.58991715]
[1755846786966,13.625594,184.08,184.07,14.58991715]
[1755846787184,5.43066143,184.14,184.09,0.28432314]
[1755846787468,16.392308,184.11,184.1,19.34924794]
[1755846787662,0.06,184.11,184.1,19.34924794]
[1755846789361,0.06,184.11,184.1,24.78107846]
[1755846791672,0.06,184.11,184.1,66.98107846]
[1755846792572,0.06,184.11,184.1,83.30983046]
[1755846793339,0.06,184.11,184.1,78.52049967]
[1755846793663,0.06,184.11,184.1,56.75991715]
[1755846794033,0.06,184.11,184.1,66.83891689]
[1755846794338,0.06,184.11,184.1,66.98107846]
[1755846795850,0.06,184.15,184.14,13.87991715]
[1755846796039,0.06,184.15,184.14,93.61991715]
[1755846796240,0.06,184.15,184.14,99.08924794]
[1755846796547,16.388752,184.15,184.14,19.34924794]
[1755846796953,16.388752,184.15,184.14,35.67444594]
[1755846797263,0.06,184.15,184.14,35.67444594]
[1755846797597,0.06,184.15,184.14,41.10509653]
[1755846798844,0.06,184.15,184.14,24.77989853]
[1755846799045,0.06,184.15,184.14,41.10509653]
[1755846801664,16.385198,184.19,184.16,13.87991715]
[1755846801860,16.385198,184.19,184.18,13.87991715]
[1755846802066,0.06,184.19,184.18,14.59991715]
[1755846802665,0.06,184.19,184.18,24.8187191]
[1755846802854,0.06,184.19,184.18,104.4987191]
[1755846804048,0.06,184.19,184.18,93.55991715]
[1755846804370,5.54933079,184.19,184.18,93.41775558]
[1755846804559,5.54933079,184.19,184.18,93.55991715]
[1755846805274,5.54933079,184.19,184.18,13.87991715]
[1755846806974,0.76,184.19,184.18,13.87991715]
[1755846807280,0.06,184.19,184.18,13.87991715]
[1755846807463,0.06,184.19,184.18,14.59991715]
[1755846808185,0.06,184.19,184.18,24.8187191]
[1755846808768,0.06,184.19,184.18,104.4987191]
[1755846808960,0.06,184.19,184.18,103.7787191]
[1755846809283,0.06,184.19,184.18,98.34924794]
[1755846809886,0.06,184.19,184.18,99.06924794]
[1755846810180,0.06,184.19,184.18,93.55991715]
[1755846812386,5.54933079,184.19,184.18,93.27559401]
[1755846812761,5.54933079,184.19,184.18,93.55991715]
[1755846813470,5.54933079,184.19,184.18,13.87991715]
[1755846813789,0.76,184.19,184.18,13.87991715]
[1755846813965,4.84933079,184.19,184.18,13.87991715]
[1755846814160,0.76,184.19,184.18,13.87991715]
[1755846814362,5.54933079,184.19,184.18,13.59559401]